fUST/lending_fUST_20241216
["ID","MTS","AMOUNT","RATE_DAILY","PERIOD"]
[345533390,1734318647537,-500.0,0.00027945,7]
[345533392,1734318647546,-500.0,0.00027945,7]
[345533394,1734318647556,-159.69164692,0.00027945,2]
[345533396,1734318647565,-500.0,0.00027945,7]
[345533398,1734318647575,-500.0,0.00027945,7]
[345533400,1734318647584,-517.59232035,0.00027945,7]
[345533402,1734318647594,-500.0,0.00027945,7]
[345533404,1734318647603,-503.89135592,0.00027945,7]
[345533406,1734318647612,-500.0,0.00027945,7]
[345533408,1734318647622,-319.0,0.00027945,2]
[345533410,1734318647631,-193.81444638,0.00027945,2]
[345533412,1734318647640,-300.0,0.00028,2]
[345533414,1734318647650,-4000.0,0.00028,4]
[345533416,1734318647660,-405482.0,0.00028,2]
[345533418,1734318647670,-151.0,0.00028,7]
[345533420,1734318647679,-3132.56452927,0.00028,9]
[345533422,1734318647688,-759.0,0.0002808,15]
[345533424,1734318647698,-193.81444638,0.00028082,2]
[345533426,1734318647708,-537.31934833,0.00028084,2]
[345533428,1734318647717,-151.0,0.00028105,6]
[345533430,1734318647726,-2268.69134852,0.00028189,2]
[345533432,1734318647735,-66648.10104984,0.000282,2]
[345533451,1734318647899,-860.71742799,0.00027239,2]
[345533453,1734318647908,-860.71742799,0.00027239,2]
[345533455,1734318647918,-860.71742799,0.00027239,2]
[345533457,1734318647927,-860.71742799,0.00027239,2]
[345533459,1734318647936,-860.71742799,0.00027239,2]
[345533461,1734318647945,-860.71742799,0.00027239,2]
[345533463,1734318647955,-860.71742799,0.00027239,2]
[345533465,1734318647964,-500.0,0.00027397,7]
[345533467,1734318647973,-500.0,0.00027671,7]
[345533469,1734318647982,-24716.4602233,0.000282,2]
[345533471,1734318647992,-214.43749601,0.000282,15]
[345533473,1734318648001,-201.75820801,0.00028219,7]
[345533475,1734318648010,-500.0,0.00028219,7]
[345533477,1734318648020,-500.0,0.00028219,7]
[345533479,1734318648029,-500.0,0.00028219,7]
[345533481,1734318648039,-201.32393855,0.00028219,7]
[345533483,1734318648049,-500.0,0.00028219,7]
[345533485,1734318648058,-500.0,0.00028219,7]
[345533487,1734318648068,-504.65984629,0.00028219,7]
[345533489,1734318648078,-500.0,0.00028219,7]
[345533491,1734318648088,-500.0,0.00028219,7]
[345533493,1734318648098,-500.0,0.00028219,7]
[345533495,1734318648111,-500.0,0.00028219,7]
[345533497,1734318648120,-500.0,0.00028219,7]
[345533499,1734318648130,-500.0,0.00028219,7]
[345533501,1734318648139,-508.39736899,0.00028219,7]
[345533503,1734318648149,-340.35670366,0.00028219,7]
[345533505,1734318648159,-500.0,0.00028219,2]
[345533507,1734318648169,-500.0,0.00028219,7]
[345533509,1734318648180,-500.0,0.00028219,7]
[345533511,1734318648193,-1047.75,0.00028219,7]
[345533513,1734318648203,-525.74342678,0.00028219,7]
[345533515,1734318648212,-500.0,0.00028219,7]
[345533517,1734318648223,-517.02398069,0.00028219,7]
[345533519,1734318648233,-522.5920934,0.00028219,7]
[345533521,1734318648242,-500.0,0.00028219,7]
[345533523,1734318648252,-168.0,0.00028219,7]
[345533526,1734318648264,-500.0,0.00028219,7]
[345533528,1734318648274,-510.28984866,0.00028219,7]
[345533530,1734318648284,-500.0,0.00028219,7]
[345533532,1734318648293,-500.0,0.00028219,7]
[345533534,1734318648303,-500.0,0.00028219,7]
[345533536,1734318648312,-500.0,0.00028219,7]
[345533538,1734318648322,-509.67700636,0.00028219,7]
[345533540,1734318648331,-162.02667728,0.00028219,7]
[345533542,1734318648340,-524.79306953,0.00028219,7]
[345533544,1734318648350,-523.13657032,0.00028219,7]
[345533546,1734318648362,-500.0,0.00028219,7]
[345533548,1734318648371,-500.0,0.00028219,7]
[345533550,1734318648380,-511.36519047,0.00028219,7]
[345533551,1734318648389,-521.07726172,0.00028219,7]
[345533554,1734318648398,-3377.61,0.00028219,7]
[345533556,1734318648408,-500.0,0.00028219,7]
[345533558,1734318648418,-500.0,0.00028219,7]
[345533560,1734318648427,-261.65934596,0.00028219,7]
[345533562,1734318648437,-500.0,0.00028219,7]
[345533564,1734318648446,-1808.98,0.00028219,7]
[345533566,1734318648455,-2016.97,0.00028219,7]
[345533568,1734318648465,-500.0,0.00028219,7]
[345533570,1734318648475,-63024.31403245,0.00028219,7]
[345533597,1734318648734,-184.73,0.00027045,2]
[345533599,1734318648744,-500.0,0.00027945,7]
[345533601,1734318648753,-16665.20596755,0.00028219,7]
[345533603,1734318648762,-500.0,0.00028219,7]
[345533605,1734318648771,-500.0,0.00028219,7]
[345533607,1734318648781,-500.0,0.00028219,7]
[345533609,1734318648790,-756.76,0.00028219,5]
[345533611,1734318648800,-500.0,0.00028219,7]
[345533613,1734318648809,-500.0,0.00028219,7]
[345533615,1734318648819,-500.0,0.00028219,7]
[345533617,1734318648828,-500.0,0.00028219,7]
[345533619,1734318648837,-500.0,0.00028219,7]
[345533621,1734318648847,-500.0,0.00028219,7]
[345533623,1734318648858,-502.93668005,0.00028219,7]
[345533625,1734318648867,-500.0,0.00028219,7]
[345533627,1734318648877,-500.0,0.00028219,7]
[345533629,1734318648886,-596.20943605,0.00028219,7]
[345533631,1734318648896,-500.0,0.00028219,7]
[345533634,1734318648906,-648.91,0.00028219,7]
[345533635,1734318648915,-943.8,0.00028219,7]
[345533638,1734318648924,-500.0,0.00028219,7]
[345533640,1734318648934,-500.0,0.00028219,7]
[345533642,1734318648943,-513.32874471,0.00028219,7]
[345533644,1734318648953,-500.0,0.00028219,7]
[345533646,1734318648962,-500.0,0.00028219,7]
[345533648,1734318648972,-505.34350071,0.00028219,7]
[345533650,1734318648981,-500.0,0.00028219,7]
[345533652,1734318648991,-319.0,0.00028219,2]
[345533654,1734318649000,-193.81444638,0.00028219,2]
[345533655,1734318649009,-1000.0,0.00028226,2]
[345533657,1734318649018,-1000.0,0.00028245,2]
[345533660,1734318649028,-1000.0,0.0002828,2]
[345533661,1734318649037,-194.777199,0.00028294,2]
[345533663,1734318649047,-676.84622924,0.00028298,2]
[345533665,1734318649057,-1000.0,0.00028303,2]
[345533668,1734318649067,-1000.0,0.00028304,2]
[345533670,1734318649076,-1000.0,0.00028332,2]
[345533672,1734318649085,-1000.0,0.00028341,2]
[345533673,1734318649095,-1000.0,0.00028345,2]
[345533676,1734318649104,-1000.0,0.00028356,2]
[345533678,1734318649114,-193.81444638,0.00028356,2]
[345533686,1734318649123,-1007.39771319,0.00028381,2]
[345533688,1734318649204,-1000.0,0.00028387,2]
[345533691,1734318649215,-151.0,0.00028389,6]
[345533693,1734318649224,-1000.0,0.00028397,2]
[345533695,1734318649235,-187.75,0.000284,2]
[345533697,1734318649245,-167.9,0.000284,31]
[345533699,1734318649255,-167.9,0.000284,31]
[345533701,1734318649265,-167.9,0.000284,31]
[345533703,1734318649274,-167.9,0.000284,31]
[345533705,1734318649283,-167.9,0.000284,31]
[345533706,1734318649293,-167.9,0.000284,31]
[345533707,1734318649302,-167.9,0.000284,31]
[345533708,1734318649311,-167.9,0.000284,31]
[345533709,1734318649321,-167.9,0.000284,31]
[345533710,1734318649330,-167.9,0.000284,31]
[345533711,1734318649339,-167.9,0.000284,31]
[345533712,1734318649348,-167.9,0.000284,31]
[345533713,1734318649359,-1000.0,0.00028405,2]
[345533714,1734318649369,-1000.0,0.00028441,2]
[345533715,1734318649379,-181.11055846,0.00028456,10]
[345533716,1734318649389,-193.81444638,0.00028466,2]
[345533717,1734318649398,-1000.0,0.00028482,2]
[345533718,1734318649408,-1000.0,0.00028483,2]
[345533719,1734318649418,-2268.69134852,0.00028486,2]
[345533720,1734318649428,-220.99154816,0.00028493,7]
[345533722,1734318649439,-646.98072467,0.00028493,7]
[345533723,1734318649448,-500.0,0.00028493,7]
[345533725,1734318649458,-500.0,0.00028493,7]
[345533728,1734318649468,-500.0,0.00028493,7]
[345533730,1734318649478,-172.20261066,0.00028493,7]
[345533732,1734318649488,-164.84282876,0.00028493,7]
[345533734,1734318649497,-500.0,0.00028493,7]
[345533736,1734318649507,-365.37228095,0.00028493,7]
[345533738,1734318649518,-500.0,0.00028493,7]
[345533740,1734318649527,-500.0,0.00028493,7]
[345533742,1734318649537,-500.0,0.00028493,7]
[345533744,1734318649546,-500.0,0.00028493,7]
[345533746,1734318649556,-500.0,0.00028493,2]
[345533748,1734318649567,-492.7179743,0.00028493,7]
[345533750,1734318649578,-500.0,0.00028493,7]
[345533752,1734318649588,-1047.75,0.00028493,7]
[345533754,1734318649598,-500.0,0.00028493,7]
[345533756,1734318649608,-500.0,0.00028493,7]
[345533758,1734318649618,-168.0,0.00028493,7]
[345533760,1734318649627,-500.0,0.00028493,7]
[345533762,1734318649637,-544.61032152,0.00028493,7]
[345533764,1734318649646,-500.0,0.00028493,7]
[345533766,1734318649657,-500.0,0.00028493,7]
[345533768,1734318649666,-171.96013895,0.00028493,7]
[345533770,1734318649676,-257.08994393,0.00028493,7]
[345533772,1734318649685,-500.0,0.00028493,7]
[345533774,1734318649695,-3377.61,0.00028493,7]
[345533776,1734318649705,-500.0,0.00028493,7]
[345533778,1734318649714,-601.19654395,0.00028493,7]
[345533781,1734318649725,-500.0,0.00028493,7]
[345533783,1734318649734,-1808.98,0.00028493,7]
[345533785,1734318649744,-2016.97,0.00028493,7]
[345533787,1734318649753,-500.0,0.00028493,7]
[345533788,1734318649763,-49197.8867966,0.00028493,7]
[345533791,1734318649776,-5229.0,0.00028493,7]
[345533793,1734318649787,-25223.13582457,0.00028493,7]
[345534858,1734318964440,366.29219,0.00013973,2]
[345534859,1734319378650,158.78950361,0.00026849,20]
[345534909,1734319832817,-366.29219,0.00020447,2]
[345534910,1734319832826,-300.0,0.00021999,2]
[345534911,1734319832836,-300.0,0.00021999,2]
[345534912,1734319832845,-1413.207794,0.00022,2]
[345534913,1734319832856,-3201.73162238,0.00022,2]
[345534936,1734319839025,-7150.31507602,0.00022,2]
[345534937,1734319839035,-243.60778261,0.00023,2]
[345534938,1734319839046,-420.0,0.00023906,2]
[345534939,1734319839056,-420.0,0.00024199,2]
[345534940,1734319839066,-525.55823501,0.000249,2]
[345534941,1734319839081,-9009.5097265,0.00025,2]
[345534942,1734319839091,-15804.94859205,0.00025,2]
[345534943,1734319839101,-152.0,0.0002514,2]
[345534944,1734319839111,-172.274653,0.00025574,2]
[345534945,1734319839121,-24900.0,0.0002577,2]
[345534946,1734319839131,-194.777199,0.00025818,2]
[345534947,1734319839141,-587.0,0.00025977,2]
[345534948,1734319839151,-808.93354909,0.0002657,2]
[345534949,1734319839161,-587.0,0.00026619,2]
[345534950,1734319839170,-366.29219,0.00026921,2]
[345534951,1734319839179,-315.0,0.00027,2]
[345534952,1734319839189,-151.0,0.00027,2]
[345534953,1734319839198,-615.763,0.0002707,2]
[345534954,1734319839208,-8721.6783158,0.00027075,2]
[345534955,1734319839217,-666.0,0.00027297,2]
[345534956,1734319839227,-500.0,0.00027373,2]
[345534957,1734319839237,-500.0,0.00027373,2]
[345534958,1734319839246,-250.52793818,0.00027373,2]
[345534959,1734319839256,-500.0,0.00027373,2]
[345534960,1734319839266,-201.05322429,0.00027397,7]
[345534961,1734319839276,-500.0,0.00027397,7]
[345534962,1734319839285,-500.0,0.00027397,7]
[345534963,1734319839294,-273.16806426,0.00027397,7]
[345534964,1734319839304,-505.45165393,0.00027397,7]
[345534965,1734319839313,-500.0,0.00027397,7]
[345534966,1734319839325,-500.0,0.00027397,7]
[345534967,1734319839334,-508.23905114,0.00027397,7]
[345534968,1734319839343,-500.0,0.00027397,7]
[345534969,1734319839353,-502.93434289,0.00027397,7]
[345534970,1734319839362,-500.0,0.00027397,7]
[345534971,1734319839372,-503.62812025,0.00027397,7]
[345534972,1734319839382,-506.02248648,0.00027397,7]
[345534973,1734319839391,-500.38492864,0.00027397,2]
[345534974,1734319839400,-503.76886762,0.00027397,7]
[345534975,1734319839410,-507.82168711,0.00027397,7]
[345534976,1734319839419,-502.17527341,0.00027397,7]
[345534977,1734319839428,-502.41702017,0.00027397,7]
[345534978,1734319839438,-502.10204362,0.00027397,7]
[345534979,1734319839448,-511.85910151,0.00027397,7]
[345534980,1734319839458,-502.56034015,0.00027397,7]
[345534981,1734319839468,-502.86471619,0.00027397,7]
[345534982,1734319839477,-508.77645355,0.00027397,7]
[345534983,1734319839486,-500.0,0.00027397,7]
[345534984,1734319839496,-195.68453638,0.00027397,7]
[345534985,1734319839505,-522.94173575,0.00027397,7]
[345534986,1734319839515,-500.0,0.00027397,7]
[345534987,1734319839524,-514.86130949,0.00027397,7]
[345534988,1734319839534,-500.0,0.00027397,7]
[345534989,1734319839543,-502.20214394,0.00027397,7]
[345534990,1734319839554,-500.0,0.00027397,7]
[345534991,1734319839566,-510.68901353,0.00027397,7]
[345534992,1734319839578,-500.0,0.00027397,7]
[345534993,1734319839588,-508.70287873,0.00027397,7]
[345534994,1734319839599,-500.0,0.00027397,7]
[345534995,1734319839609,-501.40333634,0.00027397,7]
[345534996,1734319839618,-502.96449817,0.00027397,7]
[345534997,1734319839628,-506.77290603,0.00027397,7]
[345534998,1734319839639,-1000.0,0.00027397,2]
[345534999,1734319839651,-506.67303214,0.00027397,7]
[345535000,1734319839661,-501.76175685,0.00027397,7]
[345535001,1734319839671,-501.25434197,0.00027397,7]
[345535002,1734319839681,-500.0,0.00027397,7]
[345535003,1734319839692,-562.88462751,0.00027397,7]
[345535004,1734319839701,-502.40881107,0.00027397,7]
[345535005,1734319839711,-526.61353287,0.00027397,7]
[345535006,1734319839721,-500.0,0.00027397,7]
[345535007,1734319839730,-504.88016012,0.00027397,7]
[345535008,1734319839740,-525.34496766,0.00027397,7]
[345535009,1734319839750,-503.67678552,0.00027397,7]
[345535010,1734319839760,-500.0,0.00027397,7]
[345535011,1734319839770,-501.28668324,0.00027397,7]
[345535012,1734319839779,-503.05047602,0.00027397,7]
[345535013,1734319839789,-500.0,0.00027397,7]
[345535014,1734319839799,-500.0,0.00027397,7]
[345535015,1734319839810,-500.0,0.00027397,7]
[345535016,1734319839820,-500.0,0.00027397,7]
[345535017,1734319839830,-501.42176119,0.00027397,7]
[345535018,1734319839839,-500.0,0.00027397,7]
[345535019,1734319839849,-505.62981432,0.00027397,7]
[345535020,1734319839859,-501.12807712,0.00027397,7]
[345535021,1734319839869,-503.64487229,0.00027397,7]
[345535022,1734319839878,-500.0,0.00027397,7]
[345535023,1734319839888,-168.0,0.00027397,7]
[345535024,1734319839898,-507.89121634,0.00027397,7]
[345535025,1734319839907,-502.6126415,0.00027397,7]
[345535026,1734319839916,-500.0,0.00027397,7]
[345535027,1734319839926,-529.3610101,0.00027397,7]
[345535028,1734319839936,-500.0,0.00027397,7]
[345535029,1734319839946,-509.75349106,0.00027397,7]
[345535030,1734319839955,-500.0,0.00027397,7]
[345535031,1734319839965,-502.30082414,0.00027397,7]
[345535032,1734319839974,-500.0,0.00027397,7]
[345535033,1734319839984,-502.2816151,0.00027397,7]
[345535034,1734319839993,-500.0,0.00027397,7]
[345535035,1734319840003,-504.23845061,0.00027397,7]
[345535036,1734319840136,-504.07636027,0.00027397,7]
[345535037,1734319840146,-500.0,0.00027397,7]
[345535038,1734319840157,-504.5338189,0.00027397,7]
[345535039,1734319840167,-503.58147177,0.00027397,7]
[345535040,1734319840177,-506.07017051,0.00027397,7]
[345535041,1734319840187,-504.7159423,0.00027397,7]
[345535042,1734319840197,-500.57159208,0.00027397,7]
[345535044,1734319840206,-505.47923096,0.00027397,7]
[345535046,1734319840216,-505.1567009,0.00027397,7]
[345535048,1734319840225,-505.54583286,0.00027397,7]
[345535049,1734319840235,-503.3912217,0.00027397,7]
[345535050,1734319840245,-501.74957389,0.00027397,7]
[345535051,1734319840255,-500.0,0.00027397,7]
[345535052,1734319840265,-504.07667657,0.00027397,7]
[345535053,1734319840275,-502.38289523,0.00027397,7]
[345535054,1734319840285,-315.91856675,0.00027397,7]
[345535055,1734319840295,-508.1181696,0.00027397,7]
[345535056,1734319840305,-502.62402525,0.00027397,7]
[345535057,1734319840314,-501.65854751,0.00027397,7]
[345535058,1734319840325,-501.71316369,0.00027397,7]
[345535059,1734319840334,-502.60549531,0.00027397,7]
[345535060,1734319840344,-506.72847248,0.00027397,7]
[345535061,1734319840354,-502.23468975,0.00027397,7]
[345535062,1734319840364,-509.81021478,0.00027397,7]
[345535064,1734319840374,-500.0,0.00027397,7]
[345535065,1734319840384,-500.0,0.00027397,7]
[345535066,1734319840393,-500.0,0.00027397,7]
[345535067,1734319840403,-505.16453108,0.00027397,7]
[345535068,1734319840413,-500.0,0.00027397,7]
[345535069,1734319840423,-502.63779928,0.00027397,7]
[345535070,1734319840432,-500.0,0.00027397,7]
[345535071,1734319840442,-500.0,0.00027397,7]
[345535072,1734319840452,-502.86741157,0.00027397,7]
[345535073,1734319840463,-500.0,0.00027397,7]
[345535074,1734319840472,-500.0,0.00027397,7]
[345535075,1734319840482,-504.07666826,0.00027397,7]
[345535076,1734319840492,-504.90088562,0.00027397,7]
[345535077,1734319840501,-500.0,0.00027397,7]
[345535078,1734319840511,-500.0,0.00027397,7]
[345535079,1734319840520,-502.09423246,0.00027397,7]
[345535080,1734319840529,-501.74049719,0.00027397,7]
[345535081,1734319840538,-500.0,0.00027397,7]
[345535082,1734319840548,-500.0,0.00027397,7]
[345535083,1734319840558,-500.0,0.00027397,7]
[345535084,1734319840570,-500.0,0.00027397,7]
[345535085,1734319840579,-505.44054422,0.00027397,7]
[345535086,1734319840589,-500.0,0.00027397,7]
[345535087,1734319840599,-500.0,0.00027397,7]
[345535088,1734319840609,-500.0,0.00027397,7]
[345535089,1734319840618,-500.0,0.00027397,7]
[345535090,1734319840628,-500.0,0.00027397,7]
[345535091,1734319840640,-500.0,0.00027397,7]
[345535092,1734319840650,-500.0,0.00027397,7]
[345535093,1734319840659,-500.0,0.00027397,7]
[345535094,1734319840670,-506.03387085,0.00027397,7]
[345535095,1734319840679,-500.0,0.00027397,7]
[345535096,1734319840689,-500.0,0.00027397,7]
[345535097,1734319840698,-501.14957545,0.00027397,7]
[345535098,1734319840708,-501.89897822,0.00027397,7]
[345535099,1734319840717,-506.55125742,0.00027397,7]
[345535100,1734319840727,-508.13938789,0.00027397,7]
[345535101,1734319840737,-500.0,0.00027397,7]
[345535102,1734319840746,-500.0,0.00027397,7]
[345535103,1734319840755,-503.56348278,0.00027397,7]
[345535104,1734319840764,-501.65514152,0.00027397,7]
[345535105,1734319840774,-229.11721888,0.00027397,7]
[345535106,1734319840783,-500.0,0.00027397,7]
[345535107,1734319840791,-505.38685492,0.00027397,7]
[345535108,1734319840801,-500.0,0.00027397,7]
[345535109,1734319840811,-281.62180116,0.00027397,7]
[345535110,1734319840820,-500.0,0.00027397,7]
[345535111,1734319840829,-500.0,0.00027397,7]
[345535112,1734319840839,-500.0,0.00027397,7]
[345535113,1734319840848,-627.07539368,0.00027397,7]
[345535114,1734319840857,-500.0,0.00027397,7]
[345535115,1734319840866,-500.0,0.00027397,7]
[345535116,1734319840876,-188.66672715,0.00027397,7]
[345535117,1734319840886,-503.72622432,0.00027397,7]
[345535118,1734319840896,-500.0,0.00027397,7]
[345535119,1734319840906,-500.0,0.00027397,7]
[345535120,1734319840915,-304.90779867,0.00027397,7]
[345535121,1734319840925,-506.81841463,0.00027397,7]
[345535122,1734319840934,-411.62151465,0.00027397,7]
[345535123,1734319840944,-510.73321503,0.00027397,7]
[345535124,1734319840954,-502.7328526,0.00027397,7]
[345535125,1734319840964,-500.0,0.00027397,7]
[345535126,1734319840973,-504.10490195,0.00027397,7]
[345535127,1734319840982,-500.0,0.00027397,7]
[345535128,1734319840992,-500.0,0.00027397,7]
[345535129,1734319841001,-491.52401525,0.00027397,7]
[345535130,1734319841011,-500.0,0.00027397,7]
[345535131,1734319841020,-575.98209972,0.00027397,7]
[345535132,1734319841030,-501.51146595,0.00027397,7]
[345535133,1734319841040,-500.0,0.00027397,7]
[345535134,1734319841050,-628.29501065,0.00027397,7]
[345535135,1734319841060,-187.36249707,0.00027397,7]
[345535136,1734319841071,-500.0,0.00027397,7]
[345535137,1734319841080,-500.0,0.00027397,7]
[345535138,1734319841090,-500.0,0.00027397,7]
[345535139,1734319841100,-425.22870184,0.00027397,7]
[345535140,1734319841110,-500.0,0.00027397,7]
[345535141,1734319841119,-500.0,0.00027397,7]
[345535142,1734319841129,-500.74514755,0.00027397,7]
[345535143,1734319841139,-500.0,0.00027397,7]
[345535144,1734319841148,-519.72591263,0.00027397,7]
[345535145,1734319841157,-500.0,0.00027397,7]
[345535146,1734319841167,-500.0,0.00027397,7]
[345535147,1734319841177,-500.0,0.00027397,7]
[345535148,1734319841187,-501.79564149,0.00027397,7]
[345535149,1734319841196,-500.0,0.00027397,7]
[345535150,1734319841206,-500.0,0.00027397,7]
[345535151,1734319841215,-500.0,0.00027397,7]
[345535152,1734319841224,-500.0,0.00027397,7]
[345535153,1734319841234,-500.0,0.00027397,7]
[345535154,1734319841244,-507.99767355,0.00027397,7]
[345535155,1734319841254,-507.95315676,0.00027397,7]
[345535156,1734319841264,-500.0,0.00027397,7]
[345535157,1734319841273,-502.8101452,0.00027397,7]
[345535158,1734319841282,-500.0,0.00027397,7]
[345535159,1734319841291,-500.0,0.00027397,7]
[345535160,1734319841301,-500.0,0.00027397,7]
[345535161,1734319841310,-500.0,0.00027397,7]
[345535162,1734319841321,-500.0,0.00027397,7]
[345535163,1734319841331,-561.74281175,0.00027397,7]
[345535164,1734319841340,-500.0,0.00027397,7]
[345535165,1734319841350,-500.0,0.00027397,7]
[345535166,1734319841360,-502.37854492,0.00027397,7]
[345535167,1734319841369,-501.2076488,0.00027397,7]
[345535168,1734319841379,-500.0,0.00027397,7]
[345535169,1734319841389,-510.39780587,0.00027397,7]
[345535170,1734319841399,-503.50771366,0.00027397,7]
[345535171,1734319841409,-500.0,0.00027397,7]
[345535172,1734319841418,-500.0,0.00027397,7]
[345535173,1734319841428,-500.0,0.00027397,7]
[345535174,1734319841437,-500.0,0.00027397,7]
[345535175,1734319841447,-502.73270547,0.00027397,7]
[345535176,1734319841456,-500.0,0.00027397,7]
[345535177,1734319841466,-500.0,0.00027397,7]
[345535178,1734319841476,-500.0,0.00027397,7]
[345535179,1734319841486,-502.6579722,0.00027397,7]
[345535180,1734319841496,-510.09281298,0.00027397,7]
[345535181,1734319841506,-500.0,0.00027397,7]
[345535182,1734319841515,-500.0,0.00027397,7]
[345535183,1734319841525,-500.0,0.00027397,7]
[345535184,1734319841535,-507.89115124,0.00027397,7]
[345535185,1734319841544,-509.93032164,0.00027397,7]
[345535186,1734319841555,-500.0,0.00027397,7]
[345535187,1734319841567,-500.0,0.00027397,7]
[345535188,1734319841578,-507.5613979,0.00027397,7]
[345535189,1734319841587,-196.22289417,0.00027397,7]
[345535190,1734319841597,-505.15480537,0.00027397,7]
[345535191,1734319841607,-500.0,0.00027397,7]
[345535192,1734319841616,-500.0,0.00027397,7]
[345535193,1734319841627,-506.64602938,0.00027397,7]
[345535194,1734319841638,-503.76657928,0.00027397,7]
[345535195,1734319841648,-904.47,0.00027397,7]
[345535196,1734319841657,-500.0,0.00027397,7]
[345535197,1734319841666,-503.62184828,0.00027397,7]
[345535198,1734319841676,-208.99163343,0.00027397,7]
[345535199,1734319841685,-500.0,0.00027397,7]
[345535200,1734319841695,-500.0,0.00027397,7]
[345535201,1734319841704,-500.0,0.00027397,7]
[345535202,1734319841714,-261.62976515,0.00027397,7]
[345535203,1734319841727,-500.0,0.00027397,7]
[345535204,1734319841737,-509.83153385,0.00027397,7]
[345535205,1734319841747,-500.0,0.00027397,7]
[345535206,1734319841757,-500.0,0.00027397,2]
[345535207,1734319841766,-506.83928555,0.00027397,7]
[345535208,1734319841776,-500.0,0.00027397,7]
[345535209,1734319841785,-295.79150136,0.00027397,7]
[345535210,1734319841795,-643.70911293,0.00027397,7]
[345535211,1734319841806,-500.0,0.00027397,7]
[345535212,1734319841815,-196.20937865,0.00027397,7]
[345535213,1734319841826,-400.82791068,0.00027397,7]
[345535214,1734319841835,-504.25022879,0.00027397,7]
[345535215,1734319841845,-500.0,0.00027397,7]
[345535216,1734319841855,-268.77703896,0.00027397,7]
[345535217,1734319841865,-385.31930586,0.00027397,7]
[345535218,1734319841874,-503.5881907,0.00027397,7]
[345535219,1734319841883,-621.87,0.00027397,7]
[345535220,1734319841893,-503.28827737,0.00027397,7]
[345535221,1734319841903,-500.0,0.00027397,7]
[345535222,1734319841913,-500.0,0.00027397,7]
[345535223,1734319841922,-500.0,0.00027397,7]
[345535224,1734319841931,-500.0,0.00027397,7]
[345535225,1734319841941,-500.0,0.00027397,7]
[345535226,1734319841950,-529.51124773,0.00027397,7]
[345535227,1734319841959,-164.90700594,0.00027397,7]
[345535228,1734319841968,-500.0,0.00027397,7]
[345535229,1734319841977,-500.0,0.00027397,7]
[345535230,1734319841986,-506.19097359,0.00027397,7]
[345535231,1734319841996,-500.0,0.00027397,7]
[345535232,1734319842005,-500.0,0.00027397,7]
[345535233,1734319842014,-1848.89,0.00027397,7]
[345535234,1734319842023,-500.47449633,0.00027397,7]
[345535235,1734319842033,-500.0,0.00027397,7]
[345535236,1734319842042,-167.20725077,0.00027397,7]
[345535237,1734319842052,-501.89665777,0.00027397,7]
[345535238,1734319842061,-502.88002799,0.00027397,7]
[345535239,1734319842071,-500.0,0.00027397,7]
[345535240,1734319842081,-500.0,0.00027397,7]
[345535241,1734319842091,-521.064071,0.00027397,7]
[345535242,1734319842100,-500.0,0.00027397,7]
[345535243,1734319842110,-3096.15,0.00027397,7]
[345535244,1734319842119,-500.0,0.00027397,7]
[345535245,1734319842129,-916.79,0.00027397,7]
[345535246,1734319842138,-500.0,0.00027397,7]
[345535247,1734319842147,-501.44250337,0.00027397,7]
[345535248,1734319842157,-504.70811558,0.00027397,7]